fUSD/lending_fUSD_20240520
["ID","MTS","AMOUNT","RATE_DAILY","PERIOD"]
[327598592,1716247867378,-2029.95,0.00038904,6]
[327598593,1716247867388,-1017.02,0.00038904,6]
[327598594,1716247867398,-504.54,0.00038904,6]
[327598595,1716247867407,-500.0,0.00038904,6]
[327598596,1716247867417,-500.0,0.00038904,6]
[327598597,1716247867427,-786.05,0.00038904,6]
[327598598,1716247867437,-500.0,0.00038904,6]
[327598599,1716247867449,-500.0,0.00038904,6]
[327598600,1716247867459,-14465.02,0.00038904,6]
[327598601,1716247867469,-1651.04,0.00038904,6]
[327598602,1716247867479,-878.46,0.00038904,6]
[327598603,1716247867489,-624.03,0.00038904,6]
[327598604,1716247867499,-1221.86,0.00038904,6]
[327598605,1716247867509,-1318.94,0.00038904,6]
[327598606,1716247867519,-1005.45,0.00038904,6]
[327598607,1716247867528,-500.0,0.00038904,6]
[327598608,1716247867538,-558.83,0.00038904,6]
[327598609,1716247867548,-500.0,0.00038904,6]
[327598610,1716247867558,-1750.91,0.00038904,6]
[327598611,1716247867567,-1268.61,0.00038904,6]
[327598612,1716247867577,-519.53,0.00038904,6]
[327598613,1716247867587,-1955.15,0.00038904,6]
[327598614,1716247867597,-1283.69,0.00038904,6]
[327598615,1716247867606,-1155.56,0.00038904,6]
[327598616,1716247867616,-10885.0,0.00038904,6]
[327598617,1716247867626,-981.36,0.00038904,6]
[327598618,1716247867636,-500.0,0.00038904,6]
[327598619,1716247867646,-1343.43,0.00038904,6]
[327598620,1716247867656,-493.69,0.00038904,6]
[327598621,1716247867666,-500.0,0.00038904,6]
[327598622,1716247867675,-580.42,0.00038904,6]
[327598623,1716247867687,-500.0,0.00038904,6]
[327598624,1716247867699,-3677.58,0.00038904,6]
[327598625,1716247867708,-5995.0,0.00038904,6]
[327598626,1716247867717,-775.05,0.00038904,6]
[327598627,1716247867727,-878.25,0.00038904,6]
[327598628,1716247867737,-520.4,0.00038904,6]
[327598629,1716247867746,-500.0,0.00038904,6]
[327598630,1716247867756,-500.0,0.00038904,6]
[327598631,1716247867766,-2625.83,0.00038904,6]
[327598632,1716247867778,-3511.14,0.00038904,6]
[327598633,1716247867788,-1111.9,0.00038904,6]
[327598634,1716247867797,-500.0,0.00038904,6]
[327598635,1716247867807,-500.0,0.00038904,6]
[327598636,1716247867817,-536.73,0.00038904,6]
[327598637,1716247867827,-1498.84,0.00038904,6]
[327598638,1716247867837,-1391.38,0.00038904,6]
[327598639,1716247867847,-2445.05,0.00038904,6]
[327598640,1716247867856,-753.22,0.00038904,6]
[327598641,1716247867867,-726.72,0.00038904,6]
[327598642,1716247867877,-992.81,0.00038904,6]
[327598643,1716247867888,-1883.85,0.00038904,6]
[327598644,1716247867897,-818.68,0.00038904,6]
[327598645,1716247867908,-2679.96,0.00038904,6]
[327598646,1716247867918,-567.35,0.00038904,6]
[327598647,1716247867928,-628.42,0.00038904,6]
[327598648,1716247867938,-500.0,0.00038904,6]
[327598649,1716247867951,-9619.78,0.00038904,6]
[327598650,1716247867960,-2031.57,0.00038904,6]
[327598651,1716247867968,-500.0,0.00038904,6]
[327598652,1716247867978,-2156.37,0.00038904,6]
[327598653,1716247867987,-1222.93,0.00038904,6]
[327598654,1716247867996,-1648.73,0.00038904,6]
[327598655,1716247868005,-952.89,0.00038904,6]
[327598656,1716247868015,-961.17,0.00038904,6]
[327598657,1716247868025,-500.0,0.00038904,6]
[327598658,1716247868034,-2632.2,0.00038904,6]
[327598659,1716247868044,-3261.23,0.00038904,6]
[327598660,1716247868053,-500.0,0.00038904,6]
[327598661,1716247868063,-908.87,0.00038904,6]
[327598662,1716247868072,-500.0,0.00038904,6]
[327598663,1716247868082,-964.9,0.00038904,6]
[327598664,1716247868091,-4189.48,0.00038904,6]
[327598665,1716247868100,-2667.69,0.00038904,6]
[327598666,1716247868110,-355.73348181,0.00038904,6]
[327598667,1716247868119,-500.0,0.00038904,6]
[327598668,1716247868130,-650.71,0.00038904,6]
[327598669,1716247868139,-618.56,0.00038904,6]
[327598670,1716247868149,-500.0,0.00038904,6]
[327598671,1716247868161,-1805.56,0.00038904,6]
[327598672,1716247868171,-538.15,0.00038904,6]
[327598673,1716247868183,-1301.27,0.00038904,6]
[327598674,1716247868192,-1397.37,0.00038904,6]
[327598675,1716247868203,-2748.35,0.00038904,6]
[327598676,1716247868212,-500.0,0.00038904,6]
[327598677,1716247868221,-1887.71,0.00038904,6]
[327598678,1716247868231,-1195.11,0.00038904,6]
[327598679,1716247868242,-1802.16,0.00038904,6]
[327598680,1716247868252,-1082.26,0.00038904,6]
[327598681,1716247868262,-1068.1,0.00038904,6]
[327598682,1716247868272,-3220.21,0.00038904,6]
[327598683,1716247868281,-1381.14,0.00038904,6]
[327598684,1716247868293,-500.0,0.00038904,6]
[327598685,1716247868305,-1699.72,0.00038904,6]
[327598686,1716247868314,-2603.16,0.00038904,6]
[327598687,1716247868324,-1490.38,0.00038904,6]
[327598688,1716247868334,-1901.91,0.00038904,6]
[327598689,1716247868345,-500.0,0.00038904,6]
[327598690,1716247868354,-500.0,0.00038904,6]
[327598691,1716247868364,-1643.55,0.00038904,6]
[327598692,1716247868373,-500.0,0.00038904,6]
[327598693,1716247868382,-1303.44,0.00038904,6]
[327598694,1716247868391,-841.77,0.00038904,6]
[327598695,1716247868400,-1452.71,0.00038904,6]
[327598696,1716247868410,-1309.23,0.00038904,6]
[327598697,1716247868419,-500.0,0.00038904,6]
[327598698,1716247868428,-3087.44,0.00038904,6]
[327598699,1716247868437,-635.97,0.00038904,6]
[327598700,1716247868447,-865.91,0.00038904,6]
[327598701,1716247868456,-800.48,0.00038904,6]
[327598702,1716247868466,-939.81,0.00038904,6]
[327598703,1716247868475,-7742.98,0.00038904,6]
[327598704,1716247868484,-151.0,0.00038904,14]
[327598705,1716247868496,-1303.25,0.00038904,6]
[327598706,1716247868506,-151.0,0.00038904,14]
[327598707,1716247868516,-2424.24,0.00038904,6]
[327598708,1716247868526,-500.0,0.00038904,6]
[327598709,1716247868536,-17986.48,0.00038904,6]
[327598710,1716247868546,-851.41,0.00038904,6]
[327598711,1716247868557,-500.0,0.00038904,6]
[327598712,1716247868566,-4520.81,0.00038904,6]
[327598713,1716247868576,-1059.3,0.00038904,6]
[327598714,1716247868585,-913.91,0.00038904,6]
[327598715,1716247868594,-500.0,0.00038904,6]
[327598716,1716247868603,-10518.61,0.00038904,6]
[327598717,1716247868613,-500.0,0.00038904,6]
[327598718,1716247868622,-500.0,0.00038904,6]
[327598719,1716247868631,-7135.02,0.00038904,6]
[327598720,1716247868640,-3090.93,0.00038904,6]
[327598721,1716247868650,-500.0,0.00038904,6]
[327598722,1716247868659,-770.13,0.00038904,6]
[327598723,1716247868668,-574.76,0.00038904,6]
[327598724,1716247868678,-1193.57,0.00038904,6]
[327598725,1716247868689,-1679.07,0.00038904,6]
[327598726,1716247868699,-203.36072509,0.00038904,6]
[327598727,1716247868713,-828.28,0.00038904,6]
[327598728,1716247868722,-500.0,0.00038904,6]
[327598729,1716247868733,-2344.93,0.00038904,6]
[327598730,1716247868742,-1831.13,0.00038904,6]
[327598731,1716247868752,-1890.09,0.00038904,6]
[327598732,1716247868761,-1829.22,0.00038904,6]
[327598733,1716247868771,-532.26,0.00038904,6]
[327598734,1716247868782,-3303.88,0.00038904,6]
[327598735,1716247868792,-500.0,0.00038904,6]
[327598736,1716247868802,-500.0,0.00038904,6]
[327598737,1716247868813,-1113.33,0.00038904,6]
[327598738,1716247868822,-9797.27,0.00038904,6]
[327598739,1716247868832,-500.0,0.00038904,6]
[327598740,1716247868841,-1234.18,0.00038904,6]
[327598741,1716247868850,-1002.34,0.00038904,6]
[327598742,1716247868861,-500.0,0.00038904,6]
[327598743,1716247868871,-963.12,0.00038904,6]
[327598744,1716247868881,-500.0,0.00038904,6]
[327598745,1716247868891,-1609.5,0.00038904,6]
[327598746,1716247868901,-500.0,0.00038904,6]
[327598747,1716247868912,-7073.58,0.00038904,6]
[327598748,1716247868921,-640.67,0.00038904,6]
[327598749,1716247868931,-3597.3,0.00038904,6]
[327598750,1716247868941,-579.29,0.00038904,6]
[327598751,1716247868952,-151.0,0.00038904,14]
[327598752,1716247868961,-500.0,0.00038904,6]
[327598753,1716247868970,-1831.87,0.00038904,6]
[327598754,1716247868979,-634.18,0.00038904,6]
[327598755,1716247868989,-1607.5,0.00038904,6]
[327598756,1716247868998,-3200.88,0.00038904,6]
[327598757,1716247869007,-918.2,0.00038904,6]
[327598758,1716247869016,-516.03,0.00038904,6]
[327598759,1716247869026,-3690.55,0.00038904,6]
[327598760,1716247869035,-525.396853,0.00038904,14]
[327598761,1716247869045,-500.0,0.00038904,6]
[327598762,1716247869054,-500.0,0.00038904,6]
[327598763,1716247869064,-1055.68,0.00038904,6]
[327598764,1716247869074,-525.396853,0.00038904,14]
[327598765,1716247869083,-151.0,0.00038904,14]
[327598766,1716247869092,-500.0,0.00038904,6]
[327598767,1716247869102,-500.0,0.00038904,6]
[327598768,1716247869111,-639.12,0.00038904,6]
[327598769,1716247869121,-774.59,0.00038904,6]
[327598770,1716247869130,-2813.21,0.00038904,6]
[327598771,1716247869140,-154.899784,0.00038904,14]
[327598772,1716247869149,-500.0,0.00038904,6]
[327598773,1716247869159,-2876.48,0.00038904,6]
[327598774,1716247869169,-1141.26,0.00038904,6]
[327598775,1716247869178,-500.0,0.00038904,6]
[327598776,1716247869188,-2540.09,0.00038904,6]
[327598777,1716247869200,-500.0,0.00038904,6]
[327598778,1716247869210,-500.0,0.00038904,6]
[327598779,1716247869219,-539.81,0.00038904,6]
[327598780,1716247869229,-2045.58,0.00038904,6]
[327598781,1716247869239,-500.0,0.00038904,6]
[327598782,1716247869249,-500.0,0.00038904,6]
[327598783,1716247869259,-1292.57,0.00038904,6]
[327598784,1716247869270,-730.59,0.00038904,6]
[327598785,1716247869279,-1439.22,0.00038904,6]
[327598786,1716247869290,-711.48,0.00038904,6]
[327598787,1716247869300,-500.0,0.00038904,6]
[327598788,1716247869309,-500.0,0.00038904,6]
[327598789,1716247869319,-2020.41,0.00038904,6]
[327598790,1716247869329,-2166.18,0.00038904,6]
[327598791,1716247869339,-2353.39,0.00038904,6]
[327598792,1716247869348,-6368.38,0.00038904,6]
[327598793,1716247869358,-4751.13,0.00038904,6]
[327598794,1716247869367,-1223.5,0.00038904,6]
[327598795,1716247869377,-2653.13,0.00038904,6]
[327598796,1716247869387,-672.27,0.00038904,6]
[327598797,1716247869396,-500.0,0.00038904,6]
[327598798,1716247869406,-500.0,0.00038904,6]
[327598799,1716247869416,-2371.24,0.00038904,6]
[327598800,1716247869426,-500.0,0.00038904,6]
[327598801,1716247869435,-1607.53,0.00038904,6]
[327598802,1716247869446,-3481.84,0.00038904,6]
[327598803,1716247869457,-2708.96,0.00038904,6]
[327598804,1716247869466,-1272.97,0.00038904,6]
[327598805,1716247869476,-500.0,0.00038904,6]
[327598806,1716247869486,-2163.62,0.00038904,6]
[327598807,1716247869496,-500.0,0.00038904,6]
[327598808,1716247869506,-500.0,0.00038904,6]
[327598809,1716247869516,-648.71,0.00038904,6]
[327598810,1716247869526,-500.0,0.00038904,6]
[327598811,1716247869535,-1262.94,0.00038904,6]
[327598812,1716247869545,-774.69,0.00038904,6]
[327598813,1716247869554,-500.0,0.00038904,6]
[327598814,1716247869564,-3991.94,0.00038904,6]
[327598815,1716247869574,-500.0,0.00038904,6]
[327598816,1716247869584,-1241.8,0.00038904,6]
[327598817,1716247869593,-185.594077,0.00038904,14]
[327598818,1716247869603,-533.63,0.00038904,6]
[327598819,1716247869612,-500.0,0.00038904,6]
[327598820,1716247869699,-500.0,0.00038904,6]
[327598821,1716247869709,-4099.77,0.00038904,6]
[327598822,1716247869719,-500.0,0.00038904,6]
[327598823,1716247869730,-684.84,0.00038904,6]
[327598824,1716247869740,-2570.42,0.00038904,6]
[327598825,1716247869750,-3680.4,0.00038904,6]
[327598826,1716247869759,-767.54,0.00038904,6]
[327598827,1716247869771,-10821.97,0.00038904,6]
[327598828,1716247869780,-862.9,0.00038904,6]
[327598829,1716247869790,-2660.17,0.00038904,6]
[327598830,1716247869799,-836.21,0.00038904,6]
[327598831,1716247869809,-151.0,0.00038904,14]
[327598832,1716247869818,-500.0,0.00038904,6]
[327598833,1716247869828,-1923.33,0.00038904,6]
[327598834,1716247869838,-587.25740727,0.00038904,6]
[327598835,1716247869848,-500.0,0.00038904,6]
[327598836,1716247869858,-1205.77,0.00038904,6]
[327598837,1716247869867,-3218.71,0.00038904,6]
[327598838,1716247869876,-500.0,0.00038904,2]
[327598839,1716247869885,-2687.1,0.00038904,6]
[327598840,1716247869895,-500.0,0.00038904,6]
[327598841,1716247869904,-4893.12,0.00038904,6]
[327598842,1716247869913,-1402.0,0.00038904,6]
[327598843,1716247869922,-2624.91,0.00038904,6]
[327598844,1716247869932,-995.49,0.00038904,6]
[327598845,1716247869941,-151.0,0.00038904,14]
[327598846,1716247869954,-3196.56,0.00038904,6]
[327598847,1716247869963,-4810.51,0.00038904,6]
[327598848,1716247869973,-500.0,0.00038904,6]
[327598849,1716247869982,-500.0,0.00038904,6]
[327598850,1716247869991,-151.0,0.00038904,14]
[327598851,1716247870000,-813.42,0.00038904,6]
[327598852,1716247870010,-500.0,0.00038904,6]
[327598853,1716247870019,-500.0,0.00038904,6]
[327598854,1716247870029,-680.31,0.00038904,6]
[327598855,1716247870038,-500.0,0.00038904,6]
[327598856,1716247870047,-301.79,0.00038904,2]
[327598857,1716247870057,-4322.69030082,0.00038987,2]
[327598858,1716247870066,-200.0,0.00039007,50]
[327598859,1716247870076,-477.06,0.000391,3]
[327598860,1716247870085,-477.06,0.000391,3]
[327598861,1716247870094,-477.06,0.000391,3]
[327598862,1716247870103,-477.06,0.000391,3]
[327598863,1716247870112,-477.06,0.000391,3]
[327598864,1716247870121,-477.06,0.000391,3]
[327598865,1716247870131,-477.06,0.000391,3]
[327598866,1716247870140,-477.06,0.000391,3]
[327598867,1716247870150,-477.06,0.000391,3]
[327598868,1716247870160,-477.06,0.000391,3]
[327598869,1716247870169,-477.06,0.000391,3]
[327598870,1716247870178,-477.06,0.000391,3]
[327598871,1716247870187,-477.06,0.000391,3]
[327598872,1716247870198,-477.06,0.000391,3]
[327598873,1716247870208,-477.06,0.000391,3]
[327598874,1716247870217,-477.06,0.000391,3]
[327598875,1716247870227,-477.06,0.000391,3]
[327598876,1716247870236,-477.06,0.000391,3]
[327598877,1716247870245,-477.06,0.000391,3]
[327598878,1716247870254,-477.06,0.000391,3]
[327598879,1716247870264,-157.052108,0.00039148,42]
[327598880,1716247870274,-4322.69030082,0.00039169,2]
[327598881,1716247870283,-180.0,0.00039177,2]
[327598882,1716247870293,-2344.73,0.00039177,6]
[327598883,1716247870302,-1919.25212261,0.00039177,6]
[327598884,1716247870774,-425.47787739,0.00039177,6]
[327598885,1716247870786,-851.02163281,0.00039177,6]
[327598886,1716247870798,-1493.70836719,0.00039177,6]
[327598887,1716247870807,-4526.12,0.00039177,6]
[327598888,1716247870817,-87.7304894,0.00039178,15]
[327598889,1716247870828,-1861.539849,0.00039178,15]
[327598890,1716247870839,-14157.29,0.00039178,15]
[327598891,1716247871025,-500.0,0.00038904,6]
[327598892,1716247871035,-151.0,0.00038904,14]
[327598893,1716247871044,-2986.16973733,0.00039178,15]
[327598894,1716247871057,-16812.53282388,0.00039178,15]
[327598895,1716247871220,-500.0,0.00038356,6]
[327598896,1716247871229,-4464.53136502,0.00038356,6]
[327598897,1716247871241,-12630.49863498,0.00038356,6]
[327598898,1716247871250,-17095.03,0.0003863,6]
[327598899,1716247871259,-47686.20386434,0.00039178,15]
[327598900,1716247871270,-9932.76502453,0.00039178,15]
[327598901,1716247871283,-38796.30452635,0.00039178,15]
[327598902,1716247871295,-61822.48822102,0.00039178,15]
[327598903,1716247871304,-500.0,0.00039178,2]
[327598904,1716247871314,-500.0,0.00039178,6]
[327598905,1716247871323,-663.84,0.00039178,6]
[327598906,1716247871332,-518.24,0.00039178,6]
[327598907,1716247871341,-500.0,0.00039178,6]
[327598908,1716247871350,-500.0,0.00039178,6]
[327598909,1716247871359,-500.0,0.00039178,6]
[327598910,1716247871369,-504.99,0.00039178,6]
[327598911,1716247871378,-645.91,0.00039178,6]
[327598912,1716247871388,-556.84,0.00039178,6]
[327598913,1716247871397,-500.0,0.00039178,6]
[327598914,1716247871408,-500.0,0.00039178,6]
[327598915,1716247871418,-911.88,0.00039178,6]
[327598916,1716247871427,-731.02,0.00039178,6]
[327598917,1716247871437,-500.0,0.00039178,6]
[327598918,1716247871447,-500.0,0.00039178,6]
[327598919,1716247871456,-500.0,0.00039178,6]
[327598920,1716247871465,-500.0,0.00039178,6]
[327598921,1716247871474,-500.0,0.00039178,6]
[327598922,1716247871485,-500.0,0.00039178,6]
[327598923,1716247871495,-500.0,0.00039178,6]
[327598924,1716247871504,-550.05,0.00039178,6]
[327598925,1716247871514,-590.85,0.00039178,6]
[327598926,1716247871523,-670.24,0.00039178,6]
[327598927,1716247871532,-500.0,0.00039178,6]
[327598928,1716247871542,-502.84,0.00039178,6]
[327598929,1716247871552,-500.0,0.00039178,6]
[327598930,1716247871561,-500.0,0.00039178,6]
[327598931,1716247871571,-710.57,0.00039178,6]
[327598932,1716247871580,-541.33,0.00039178,6]
[327598933,1716247871589,-500.0,0.00039178,6]
[327598934,1716247871598,-163.4947394,0.00039178,6]
[327598935,1716247871607,-819.72,0.00039178,6]
[327598936,1716247871616,-603.2,0.00039178,6]
[327598937,1716247871625,-500.0,0.00039178,6]
[327598938,1716247871635,-500.0,0.00039178,6]
[327598939,1716247871644,-500.0,0.00039178,6]
[327598940,1716247871654,-500.0,0.00039178,6]
[327598941,1716247871664,-500.0,0.00039178,6]
[327598942,1716247871673,-500.0,0.00039178,6]
[327598943,1716247871684,-500.0,0.00039178,6]
[327598944,1716247871699,-500.0,0.00039178,6]
[327598945,1716247871709,-732.89,0.00039178,6]
[327598946,1716247871718,-500.0,0.00039178,6]
[327598947,1716247871729,-500.0,0.00039178,6]
[327598948,1716247871739,-541.83,0.00039178,6]
[327598949,1716247871748,-518.19422497,0.00039178,6]
[327598950,1716247871758,-500.0,0.00039178,6]
[327598951,1716247871767,-500.0,0.00039178,6]
[327598952,1716247871778,-500.0,0.00039178,6]
[327598953,1716247871787,-390.67901448,0.00039178,6]
[327598954,1716247871797,-500.0,0.00039178,6]
[327598955,1716247871807,-856.71,0.00039178,6]
[327598956,1716247871817,-641.45,0.00039178,6]
[327598957,1716247871826,-227.19114827,0.00039178,6]
[327598958,1716247871843,-1058.04885173,0.00039178,6]
[327598959,1716247871853,-500.0,0.00039178,6]
[327598960,1716247871862,-500.0,0.00039178,6]
[327598961,1716247871872,-613.59,0.00039178,6]
[327598962,1716247871881,-631.61,0.00039178,6]
[327598963,1716247871891,-713.61,0.00039178,6]
[327598964,1716247871900,-655.5,0.00039178,6]
[327598965,1716247871909,-500.0,0.00039178,6]
[327598966,1716247871919,-500.0,0.00039178,6]
[327598967,1716247871928,-721.68,0.00039178,6]
[327598968,1716247871938,-500.0,0.00039178,6]
[327598969,1716247871948,-500.0,0.00039178,6]
[327598970,1716247871958,-1022.48,0.00039178,6]
[327598971,1716247871967,-500.0,0.00039178,6]
[327598972,1716247871977,-447.96225603,0.00039178,6]
[327598973,1716247871987,-567.89,0.00039178,6]
[327598974,1716247871997,-221.01,0.00039178,6]
[327598975,1716247872006,-500.0,0.00039178,6]
[327598976,1716247872016,-500.0,0.00039178,6]
[327598977,1716247872026,-500.0,0.00039178,6]
[327598978,1716247872037,-1592.32,0.00039178,6]
[327598979,1716247872046,-500.0,0.00039178,6]
[327598980,1716247872057,-166.94,0.00039178,6]
[327598981,1716247872066,-500.0,0.00039178,6]
[327598982,1716247872076,-552.54,0.00039178,6]
[327598983,1716247872086,-500.0,0.00039178,6]
[327598984,1716247872097,-500.0,0.00039178,6]
[327598985,1716247872106,-500.0,0.00039178,6]
[327598986,1716247872116,-698.88,0.00039178,6]
[327598987,1716247872125,-1261.18,0.00039178,6]
[327598988,1716247872138,-500.0,0.00039178,6]
[327598989,1716247872147,-500.0,0.00039178,6]
[327598990,1716247872157,-704.75,0.00039178,6]
[327598991,1716247872168,-500.0,0.00039178,6]
[327598992,1716247872178,-500.0,0.00039178,6]
[327598993,1716247872188,-757.57,0.00039178,6]
[327598994,1716247872199,-313.20206437,0.00039178,6]
[327598995,1716247872208,-704.77,0.00039178,6]
[327598996,1716247872218,-500.0,0.00039178,6]
[327598997,1716247872227,-1159.42,0.00039178,6]
[327598998,1716247872238,-500.0,0.00039178,6]
[327598999,1716247872247,-1297.75,0.00039178,6]
[327599000,1716247872257,-846.87,0.00039178,6]
[327599001,1716247872266,-500.0,0.00039178,6]
[327599002,1716247872276,-500.0,0.00039178,6]
[327599003,1716247872285,-1025.18,0.00039178,6]
[327599004,1716247872295,-500.0,0.00039178,6]
[327599005,1716247872304,-500.0,0.00039178,6]
[327599006,1716247872314,-1061.22,0.00039178,6]
[327599007,1716247872324,-500.0,0.00039178,6]
[327599008,1716247872335,-500.0,0.00039178,6]
[327599009,1716247872345,-500.0,0.00039178,6]
[327599010,1716247872355,-500.0,0.00039178,6]
[327599011,1716247872364,-2000.0,0.00039178,6]
[327599012,1716247872375,-500.0,0.00039178,6]
[327599013,1716247872384,-665.38,0.00039178,6]
[327599014,1716247872394,-500.0,0.00039178,6]
[327599015,1716247872403,-660.25,0.00039178,6]
[327599016,1716247872412,-559.21,0.00039178,6]
[327599017,1716247872422,-716.65,0.00039178,6]
[327599018,1716247872431,-664.2,0.00039178,6]
[327599019,1716247872441,-500.0,0.00039178,6]
[327599020,1716247872452,-500.0,0.00039178,6]
[327599021,1716247872462,-731.79,0.00039178,6]
[327599022,1716247872471,-837.66,0.00039178,6]
[327599023,1716247872481,-500.0,0.00039178,6]
[327599024,1716247872490,-500.0,0.00039178,6]
[327599025,1716247872500,-508.08,0.00039178,6]
[327599026,1716247872510,-560.79,0.00039178,6]
[327599027,1716247872520,-556.65,0.00039178,6]
[327599028,1716247872529,-536.24,0.00039178,6]
[327599029,1716247872540,-500.0,0.00039178,6]
[327599030,1716247872550,-500.0,0.00039178,6]
[327599031,1716247872560,-500.0,0.00039178,6]
[327599032,1716247872569,-152.180005,0.00039178,14]
[327599033,1716247872579,-500.0,0.00039178,6]
[327599034,1716247872588,-928.86,0.00039178,6]
[327599035,1716247872598,-586.22,0.00039178,6]
[327599036,1716247872607,-746.54,0.00039178,6]
[327599037,1716247872616,-500.0,0.00039178,6]
[327599038,1716247872626,-762.66,0.00039178,6]
[327599039,1716247872635,-954.68,0.00039178,6]
[327599040,1716247872645,-956.7,0.00039178,6]
[327599041,1716247872654,-500.0,0.00039178,6]
[327599042,1716247872664,-517.52,0.00039178,6]
[327599043,1716247872673,-942.04,0.00039178,6]
[327599044,1716247872682,-501.5,0.00039178,6]
[327599045,1716247872692,-500.0,0.00039178,6]
[327599046,1716247872705,-500.0,0.00039178,6]
[327599047,1716247872715,-500.0,0.00039178,6]
[327599048,1716247872724,-500.0,0.00039178,6]
[327599049,1716247872734,-649.57,0.00039178,6]
[327599050,1716247872743,-1124.55,0.00039178,6]
[327599051,1716247872753,-500.0,0.00039178,6]
[327599052,1716247872763,-500.0,0.00039178,6]
[327599053,1716247872774,-500.0,0.00039178,6]
[327599054,1716247872785,-840.58,0.00039178,6]
[327599055,1716247872794,-500.0,0.00039178,6]
[327599056,1716247872804,-500.0,0.00039178,6]
[327599057,1716247872813,-500.0,0.00039178,6]
[327599058,1716247872823,-566.16,0.00039178,6]
[327599059,1716247872832,-500.0,0.00039178,6]
[327599060,1716247872841,-573.91,0.00039178,6]
[327599061,1716247872851,-830.08,0.00039178,6]
[327599062,1716247872863,-500.0,0.00039178,6]
[327599063,1716247872872,-500.0,0.00039178,6]
[327599064,1716247872882,-504.79,0.00039178,6]
[327599065,1716247872891,-500.0,0.00039178,6]
[327599066,1716247872901,-677.24,0.00039178,6]
[327599067,1716247872910,-500.0,0.00039178,6]
[327599068,1716247872920,-500.0,0.00039178,6]
[327599069,1716247872930,-500.0,0.00039178,6]
[327599070,1716247872940,-1171.23,0.00039178,6]
[327599071,1716247872950,-539.94,0.00039178,6]
[327599072,1716247872959,-577.41,0.00039178,6]
[327599073,1716247872970,-500.0,0.00039178,6]
[327599074,1716247872980,-500.0,0.00039178,6]
[327599075,1716247872989,-500.0,0.00039178,6]
[327599076,1716247872999,-500.0,0.00039178,6]
[327599077,1716247873009,-855.11,0.00039178,6]
[327599078,1716247873018,-1031.52,0.00039178,6]
[327599079,1716247873029,-500.0,0.00039178,6]
[327599080,1716247873038,-500.0,0.00039178,6]
[327599081,1716247873048,-1199.79,0.00039178,6]
[327599082,1716247873057,-620.6,0.00039178,6]
[327599083,1716247873067,-515.13,0.00039178,6]
[327599084,1716247873076,-554.98,0.00039178,6]
[327599085,1716247873086,-500.0,0.00039178,6]
[327599086,1716247873095,-818.89,0.00039178,6]
[327599087,1716247873104,-843.4,0.00039178,6]
[327599088,1716247873114,-500.0,0.00039178,6]
[327599089,1716247873123,-1226.9,0.00039178,6]
[327599090,1716247873133,-300.0,0.00039178,6]
[327599091,1716247873143,-500.0,0.00039178,6]